[Event "Titled Tuesday Blitz August 15 Early 2023"]
[White "Wang, Alexander J"]
[Black "Khater, Sherif"]
[WhiteFideId "30955270"]
[BlackFideId "2034280"]
[WhiteElo "2291"]
[BlackElo "2557"]
[Result "0-1"]
[Round "3"]
[TimeControl "180+1"]
[Date "2023.08.15"]
[WhiteClock "0:01:47"]
[BlackClock "0:02:43"]
[Board "192"]

1. e4 {[%clk 0:03:00]}  a6 {[%clk 0:03:00]} 2. d4 {[%clk 0:03:00]}  c6 {[%clk 0:03:00]} 3. Nf3 {[%clk 0:02:59]}  d5 {[%clk 0:03:00]} 4. e5 {[%clk 0:02:58]}  Bf5 {[%clk 0:03:01]} 5. c3 {[%clk 0:02:56]}  e6 {[%clk 0:03:00]} 6. Bd3 {[%clk 0:02:55]}  Ne7 {[%clk 0:02:59]} 7. O-O {[%clk 0:02:55]}  Qc7 {[%clk 0:02:59]} 8. Bf4 {[%clk 0:02:55]}  Nd7 {[%clk 0:02:59]} 9. Bxf5 {[%clk 0:02:52]}  Nxf5 {[%clk 0:02:59]} 10. Nbd2 {[%clk 0:02:52]}  h6 {[%clk 0:02:59]} 11. Bg3 {[%clk 0:02:51]}  Nxg3 {[%clk 0:02:58]} 12. hxg3 {[%clk 0:02:51]}  c5 {[%clk 0:02:58]} 13. Re1 {[%clk 0:02:51]}  cxd4 {[%clk 0:02:56]} 14. cxd4 {[%clk 0:02:50]}  Bb4 {[%clk 0:02:56]} 15. a3 {[%clk 0:02:50]}  Bxd2 {[%clk 0:02:56]} 16. Qxd2 {[%clk 0:02:48]}  O-O {[%clk 0:02:56]} 17. Rac1 {[%clk 0:02:47]}  Qb6 {[%clk 0:02:55]} 18. b4 {[%clk 0:02:40]}  Qb5 {[%clk 0:02:54]} 19. Qe2 {[%clk 0:02:37]}  Rac8 {[%clk 0:02:54]} 20. Qxb5 {[%clk 0:02:33]}  axb5 {[%clk 0:02:54]} 21. Nd2 {[%clk 0:02:32]}  Nb6 {[%clk 0:02:55]} 22. Nb3 {[%clk 0:02:31]}  Nc4 {[%clk 0:02:55]} 23. Ra1 {[%clk 0:02:26]}  b6 {[%clk 0:02:54]} 24. a4 {[%clk 0:02:23]}  bxa4 {[%clk 0:02:52]} 25. Rxa4 {[%clk 0:02:24]}  Ra8 {[%clk 0:02:50]} 26. Rea1 {[%clk 0:02:23]}  Rxa4 {[%clk 0:02:50]} 27. Rxa4 {[%clk 0:02:24]}  g5 {[%clk 0:02:51]} 28. b5 {[%clk 0:02:19]}  Rc8 {[%clk 0:02:51]} 29. Ra6 {[%clk 0:02:18]}  Kg7 {[%clk 0:02:51]} 30. Nc1 {[%clk 0:02:11]}  Nxe5 {[%clk 0:02:49]} 31. dxe5 {[%clk 0:02:09]}  Rxc1+ {[%clk 0:02:48]} 32. Kh2 {[%clk 0:02:09]}  Re1 {[%clk 0:02:47]} 33. f4 {[%clk 0:02:05]}  Re4 {[%clk 0:02:42]} 34. Rxb6 {[%clk 0:01:52]}  gxf4 {[%clk 0:02:42]} 35. gxf4 {[%clk 0:01:49]}  Rxf4 {[%clk 0:02:43]} 36. Rd6 {[%clk 0:01:49]}  Rb4 {[%clk 0:02:43]} 37. b6 {[%clk 0:01:50]}  Kg6 {[%clk 0:02:43]} 38. g4 {[%clk 0:01:48]}  Rxg4 {[%clk 0:02:43]} 39. Rd8 {[%clk 0:01:48]}  Rb4 {[%clk 0:02:42]} 40. Rg8+ {[%clk 0:01:47]}  Kf5 {[%clk 0:02:43]} 0-1


[Site "https://www.chess.com"]

[Event "Titled Tuesday Blitz August 15 Early 2023"]
[White "Nguyen Hong Anh"]
[Black "Wimalasuriya, Kasun M."]
[WhiteFideId "12406732"]
[BlackFideId "9906789"]
[WhiteElo "2543"]
[BlackElo "2290"]
[Result "1-0"]
[Round "3"]
[TimeControl "180+1"]
[Date "2023.08.15"]
[WhiteClock "0:02:34"]
[BlackClock "0:02:25"]
[Board "193"]

1. d4 {[%clk 0:03:00]}  Nf6 {[%clk 0:02:59]} 2. c4 {[%clk 0:02:59]}  g6 {[%clk 0:02:58]} 3. Nf3 {[%clk 0:02:58]}  Bg7 {[%clk 0:02:58]} 4. g3 {[%clk 0:02:59]}  O-O {[%clk 0:02:57]} 5. Bg2 {[%clk 0:02:59]}  d6 {[%clk 0:02:57]} 6. O-O {[%clk 0:02:59]}  Nc6 {[%clk 0:02:54]} 7. d5 {[%clk 0:02:59]}  Na5 {[%clk 0:02:51]} 8. Qc2 {[%clk 0:02:57]}  c5 {[%clk 0:02:51]} 9. Nfd2 {[%clk 0:02:46]}  Rb8 {[%clk 0:02:50]} 10. Nc3 {[%clk 0:02:46]}  a6 {[%clk 0:02:49]} 11. b3 {[%clk 0:02:46]}  b5 {[%clk 0:02:48]} 12. Bb2 {[%clk 0:02:46]}  bxc4 {[%clk 0:02:46]} 13. bxc4 {[%clk 0:02:45]}  Bd7 {[%clk 0:02:36]} 14. Rab1 {[%clk 0:02:43]}  Qc7 {[%clk 0:02:35]} 15. Nd1 {[%clk 0:02:41]}  Bf5 {[%clk 0:02:34]} 16. e4 {[%clk 0:02:39]}  Bg4 {[%clk 0:02:34]} 17. Ne3 {[%clk 0:02:38]}  Bd7 {[%clk 0:02:31]} 18. Bc3 {[%clk 0:02:36]}  Rb7 {[%clk 0:02:25]} 19. Bxa5 {[%clk 0:02:34]} 1-0


[Site "https://www.chess.com"]

[Event "Titled Tuesday Blitz August 15 Early 2023"]
[White "Delorme, Axel"]
[Black "Ouellet, Maili-Jade"]
[WhiteFideId "632023"]
[BlackFideId "2620472"]
[WhiteElo "2488"]
[BlackElo "2282"]
[Result "1/2-1/2"]
[Round "3"]
[TimeControl "180+1"]
[Date "2023.08.15"]
[WhiteClock "0:00:06"]
[BlackClock "0:00:03"]
[Board "198"]

1. e4 {[%clk 0:03:00]}  c6 {[%clk 0:02:54]} 2. d4 {[%clk 0:03:00]}  d5 {[%clk 0:02:53]} 3. Nc3 {[%clk 0:03:01]}  dxe4 {[%clk 0:02:52]} 4. Nxe4 {[%clk 0:03:02]}  Nf6 {[%clk 0:02:52]} 5. Nxf6+ {[%clk 0:03:02]}  exf6 {[%clk 0:02:53]} 6. Bc4 {[%clk 0:03:02]}  Bd6 {[%clk 0:02:50]} 7. Qe2+ {[%clk 0:03:02]}  Qe7 {[%clk 0:02:48]} 8. Qxe7+ {[%clk 0:03:02]}  Kxe7 {[%clk 0:02:49]} 9. Ne2 {[%clk 0:03:02]}  Re8 {[%clk 0:02:49]} 10. Be3 {[%clk 0:02:53]}  Be6 {[%clk 0:02:45]} 11. Bd3 {[%clk 0:02:52]}  Nd7 {[%clk 0:02:33]} 12. Bf4 {[%clk 0:02:51]}  Nb6 {[%clk 0:02:27]} 13. Bxd6+ {[%clk 0:02:49]}  Kxd6 {[%clk 0:02:28]} 14. O-O-O {[%clk 0:02:49]}  a5 {[%clk 0:02:16]} 15. b3 {[%clk 0:02:44]}  a4 {[%clk 0:02:14]} 16. c4 {[%clk 0:02:44]}  Kc7 {[%clk 0:01:59]} 17. Kb2 {[%clk 0:02:42]}  Bf5 {[%clk 0:01:41]} 18. Rhe1 {[%clk 0:02:37]}  Bxd3 {[%clk 0:01:37]} 19. Rxd3 {[%clk 0:02:38]}  axb3 {[%clk 0:01:26]} 20. axb3 {[%clk 0:02:37]}  Re7 {[%clk 0:01:23]} 21. Re3 {[%clk 0:02:11]}  Rxe3 {[%clk 0:01:22]} 22. fxe3 {[%clk 0:02:11]}  Re8 {[%clk 0:01:22]} 23. Nc3 {[%clk 0:02:12]}  f5 {[%clk 0:01:18]} 24. Kc2 {[%clk 0:02:03]}  Nd7 {[%clk 0:01:15]} 25. Kd2 {[%clk 0:01:53]}  Nf6 {[%clk 0:01:15]} 26. Rf1 {[%clk 0:01:51]}  g6 {[%clk 0:01:14]} 27. b4 {[%clk 0:01:47]}  Kd6 {[%clk 0:00:48]} 28. h3 {[%clk 0:01:45]}  h5 {[%clk 0:00:47]} 29. Kd3 {[%clk 0:01:39]}  Ra8 {[%clk 0:00:41]} 30. Kc2 {[%clk 0:01:36]}  Re8 {[%clk 0:00:34]} 31. Kd3 {[%clk 0:01:29]}  Ra8 {[%clk 0:00:34]} 32. b5 {[%clk 0:01:25]}  Ra3 {[%clk 0:00:33]} 33. Kc2 {[%clk 0:01:18]}  Ke6 {[%clk 0:00:32]} 34. bxc6 {[%clk 0:01:15]}  bxc6 {[%clk 0:00:33]} 35. Kb2 {[%clk 0:01:15]}  Ra8 {[%clk 0:00:32]} 36. Kc2 {[%clk 0:01:07]}  Ra3 {[%clk 0:00:29]} 37. Rb1 {[%clk 0:01:06]}  Ne4 {[%clk 0:00:27]} 38. Rb3 {[%clk 0:00:55]}  Rxb3 {[%clk 0:00:20]} 39. Kxb3 {[%clk 0:00:56]}  Nd2+ {[%clk 0:00:19]} 40. Kb4 {[%clk 0:00:54]}  Kd6 {[%clk 0:00:19]} 41. h4 {[%clk 0:00:46]}  f6 {[%clk 0:00:19]} 42. c5+ {[%clk 0:00:42]}  Kc7 {[%clk 0:00:17]} 43. d5 {[%clk 0:00:39]}  Nf1 {[%clk 0:00:09]} 44. d6+ {[%clk 0:00:37]}  Kd7 {[%clk 0:00:06]} 45. e4 {[%clk 0:00:25]}  f4 {[%clk 0:00:05]} 46. Kc4 {[%clk 0:00:24]}  Ne3+ {[%clk 0:00:04]} 47. Kd4 {[%clk 0:00:20]}  Nxg2 {[%clk 0:00:05]} 48. e5 {[%clk 0:00:18]}  fxe5+ {[%clk 0:00:04]} 49. Kxe5 {[%clk 0:00:18]}  f3 {[%clk 0:00:05]} 50. Ne4 {[%clk 0:00:17]}  Nxh4 {[%clk 0:00:05]} 51. Kf4 {[%clk 0:00:16]}  Kd8 {[%clk 0:00:03]} 52. Kg3 {[%clk 0:00:14]}  Nf5+ {[%clk 0:00:03]} 53. Kxf3 {[%clk 0:00:15]}  Nd4+ {[%clk 0:00:02]} 54. Kf4 {[%clk 0:00:15]}  Ne6+ {[%clk 0:00:03]} 55. Kg3 {[%clk 0:00:14]}  g5 {[%clk 0:00:02]} 56. Kf3 {[%clk 0:00:13]}  h4 {[%clk 0:00:02]} 57. Kg4 {[%clk 0:00:13]}  Kd7 {[%clk 0:00:02]} 58. Nf6+ {[%clk 0:00:06]}  Kd8 {[%clk 0:00:02]} 59. Ne4 {[%clk 0:00:07]}  Kd7 {[%clk 0:00:03]} 60. Nf6+ {[%clk 0:00:06]}  Kd8 {[%clk 0:00:03]} 61. Ne4 {[%clk 0:00:06]} 1/2-1/2


[Site "https://www.chess.com"]

[Event "Titled Tuesday Blitz August 15 Early 2023"]
[White "Garcia-Castany Musellas, Gal.la"]
[Black "favesaul"]
[WhiteFideId "2241803"]
[WhiteElo "2270"]
[BlackElo "2466"]
[Result "0-1"]
[Round "3"]
[TimeControl "180+1"]
[Date "2023.08.15"]
[WhiteClock "0:00:00"]
[BlackClock "0:00:03"]
[Board "202"]

1. e4 {[%clk 0:03:00]}  c5 {[%clk 0:02:59]} 2. Nf3 {[%clk 0:03:00]}  e6 {[%clk 0:02:59]} 3. g3 {[%clk 0:02:59]}  Nc6 {[%clk 0:02:59]} 4. Bg2 {[%clk 0:02:59]}  d5 {[%clk 0:02:59]} 5. exd5 {[%clk 0:02:58]}  Qxd5 {[%clk 0:02:56]} 6. O-O {[%clk 0:02:57]}  Qd7 {[%clk 0:02:54]} 7. Na3 {[%clk 0:02:48]}  Nf6 {[%clk 0:02:39]} 8. Nc4 {[%clk 0:02:45]}  Be7 {[%clk 0:02:30]} 9. a4 {[%clk 0:02:45]}  O-O {[%clk 0:02:27]} 10. d3 {[%clk 0:02:37]}  Nd5 {[%clk 0:02:24]} 11. Nfe5 {[%clk 0:02:05]}  Nxe5 {[%clk 0:02:22]} 12. Nxe5 {[%clk 0:02:06]}  Qc7 {[%clk 0:02:18]} 13. Re1 {[%clk 0:01:53]}  Rb8 {[%clk 0:01:28]} 14. Nc4 {[%clk 0:01:37]}  Qd8 {[%clk 0:01:22]} 15. Qe2 {[%clk 0:01:16]}  b6 {[%clk 0:01:17]} 16. h4 {[%clk 0:00:58]}  Bb7 {[%clk 0:00:54]} 17. Qh5 {[%clk 0:00:36]}  Nf6 {[%clk 0:00:50]} 18. Qe2 {[%clk 0:00:33]}  Bxg2 {[%clk 0:00:49]} 19. Kxg2 {[%clk 0:00:34]}  Qd5+ {[%clk 0:00:46]} 20. Qf3 {[%clk 0:00:34]}  Rfd8 {[%clk 0:00:46]} 21. Bf4 {[%clk 0:00:32]}  Rbc8 {[%clk 0:00:44]} 22. Re5 {[%clk 0:00:28]}  Qxf3+ {[%clk 0:00:43]} 23. Kxf3 {[%clk 0:00:29]}  Nd5 {[%clk 0:00:43]} 24. Bd2 {[%clk 0:00:27]}  Bf6 {[%clk 0:00:42]} 25. Ree1 {[%clk 0:00:24]}  h6 {[%clk 0:00:31]} 26. Kg2 {[%clk 0:00:21]}  Ne7 {[%clk 0:00:13]} 27. Rh1 {[%clk 0:00:19]}  Nc6 {[%clk 0:00:11]} 28. Bc3 {[%clk 0:00:18]}  Nd4 {[%clk 0:00:07]} 29. g4 {[%clk 0:00:16]}  Nxc2 {[%clk 0:00:06]} 30. Rac1 {[%clk 0:00:15]}  Nd4 {[%clk 0:00:04]} 31. Rce1 {[%clk 0:00:11]}  Rd5 {[%clk 0:00:02]} 32. Re4 {[%clk 0:00:10]}  Rcd8 {[%clk 0:00:02]} 33. f4 {[%clk 0:00:09]}  g6 {[%clk 0:00:03]} 34. g5 {[%clk 0:00:09]}  hxg5 {[%clk 0:00:03]} 35. hxg5 {[%clk 0:00:09]}  Bg7 {[%clk 0:00:04]} 36. Re3 {[%clk 0:00:08]}  Nf5 {[%clk 0:00:05]} 37. Reh3 {[%clk 0:00:06]}  Bxc3 {[%clk 0:00:04]} 38. bxc3 {[%clk 0:00:05]}  Kf8 {[%clk 0:00:05]} 39. Rh8+ {[%clk 0:00:04]}  Ke7 {[%clk 0:00:06]} 40. Rxd8 {[%clk 0:00:04]}  Rxd8 {[%clk 0:00:07]} 41. Ne5 {[%clk 0:00:04]}  c4 {[%clk 0:00:03]} 42. Rh7 {[%clk 0:00:03]}  cxd3 {[%clk 0:00:04]} 43. Rxf7+ {[%clk 0:00:03]}  Kd6 {[%clk 0:00:04]} 44. Kf3 {[%clk 0:00:01]}  d2 {[%clk 0:00:04]} 45. Ke2 {[%clk 0:00:00]}  Kc5 {[%clk 0:00:03]} 0-1


[Site "https://www.chess.com"]

[Event "Titled Tuesday Blitz August 15 Early 2023"]
[White "Molenda, Marcin"]
[Black "Hrescak, Ivana"]
[WhiteFideId "1173065"]
[BlackFideId "14613441"]
[WhiteElo "2459"]
[BlackElo "2270"]
[Result "1-0"]
[Round "3"]
[TimeControl "180+1"]
[Date "2023.08.15"]
[WhiteClock "0:00:03"]
[BlackClock "0:00:02"]
[Board "203"]

1. e4 {[%clk 0:03:00]}  e5 {[%clk 0:02:59]} 2. Nf3 {[%clk 0:03:00]}  Nc6 {[%clk 0:02:59]} 3. Bb5 {[%clk 0:03:00]}  a6 {[%clk 0:03:00]} 4. Ba4 {[%clk 0:03:00]}  b5 {[%clk 0:03:00]} 5. Bb3 {[%clk 0:03:00]}  g6 {[%clk 0:03:00]} 6. d4 {[%clk 0:02:58]}  exd4 {[%clk 0:03:00]} 7. Nxd4 {[%clk 0:02:51]}  Na5 {[%clk 0:02:58]} 8. O-O {[%clk 0:02:45]}  Bg7 {[%clk 0:02:57]} 9. e5 {[%clk 0:02:38]}  Ne7 {[%clk 0:02:54]} 10. Bxf7+ {[%clk 0:02:30]}  Kxf7 {[%clk 0:02:55]} 11. Qf3+ {[%clk 0:02:31]}  Nf5 {[%clk 0:02:29]} 12. Nxf5 {[%clk 0:02:25]}  gxf5 {[%clk 0:02:29]} 13. Qxa8 {[%clk 0:02:15]}  Nc6 {[%clk 0:02:14]} 14. a4 {[%clk 0:01:24]}  b4 {[%clk 0:02:08]} 15. Nd2 {[%clk 0:01:22]}  Bxe5 {[%clk 0:01:35]} 16. Nf3 {[%clk 0:01:12]}  Bf6 {[%clk 0:01:22]} 17. Bf4 {[%clk 0:01:11]}  Rg8 {[%clk 0:01:04]} 18. Rad1 {[%clk 0:01:10]}  Bxb2 {[%clk 0:00:45]} 19. Rd5 {[%clk 0:01:01]}  Ne7 {[%clk 0:00:22]} 20. Rd3 {[%clk 0:00:40]}  d6 {[%clk 0:00:17]} 21. Ng5+ {[%clk 0:00:36]}  Kg6 {[%clk 0:00:15]} 22. Qf3 {[%clk 0:00:36]}  Bd7 {[%clk 0:00:14]} 23. Qg3 {[%clk 0:00:34]}  Kf6 {[%clk 0:00:09]} 24. Nxh7+ {[%clk 0:00:27]}  Kf7 {[%clk 0:00:09]} 25. Ng5+ {[%clk 0:00:28]}  Kf8 {[%clk 0:00:10]} 26. Re1 {[%clk 0:00:25]}  Bf6 {[%clk 0:00:08]} 27. h4 {[%clk 0:00:24]}  Qe8 {[%clk 0:00:08]} 28. Rde3 {[%clk 0:00:24]}  Qh5 {[%clk 0:00:07]} 29. Bxd6 {[%clk 0:00:19]}  cxd6 {[%clk 0:00:07]} 30. Qxd6 {[%clk 0:00:20]}  Bxg5 {[%clk 0:00:05]} 31. hxg5 {[%clk 0:00:19]}  Qxg5 {[%clk 0:00:06]} 32. Qxe7+ {[%clk 0:00:13]}  Qxe7 {[%clk 0:00:06]} 33. Rxe7 {[%clk 0:00:14]}  Bxa4 {[%clk 0:00:05]} 34. Ra7 {[%clk 0:00:14]}  Bc6 {[%clk 0:00:04]} 35. Re6 {[%clk 0:00:04]}  Bxg2 {[%clk 0:00:03]} 36. Rb6 {[%clk 0:00:03]}  Be4+ {[%clk 0:00:03]} 37. Kh2 {[%clk 0:00:03]}  Rg2+ {[%clk 0:00:02]} 38. Kh3 {[%clk 0:00:03]}  Rxf2 {[%clk 0:00:02]} 39. Rb8# {[%clk 0:00:03]} 1-0


[Site "https://www.chess.com"]

[Event "Titled Tuesday Blitz August 15 Early 2023"]
[White "Itkis, Boris"]
[Black "Ardila, Oscar Humberto"]
[WhiteFideId "1209167"]
[BlackFideId "4404742"]
[WhiteElo "2452"]
[BlackElo "2261"]
[Result "1-0"]
[Round "3"]
[TimeControl "180+1"]
[Date "2023.08.15"]
[WhiteClock "0:01:42"]
[BlackClock "0:00:19"]
[Board "204"]

1. c4 {[%clk 0:03:00]}  Nf6 {[%clk 0:02:59]} 2. Nf3 {[%clk 0:03:01]}  e6 {[%clk 0:03:00]} 3. e3 {[%clk 0:03:01]}  Be7 {[%clk 0:03:00]} 4. b3 {[%clk 0:03:02]}  O-O {[%clk 0:03:01]} 5. Bb2 {[%clk 0:03:02]}  d5 {[%clk 0:03:01]} 6. g3 {[%clk 0:03:02]}  c5 {[%clk 0:03:01]} 7. Bg2 {[%clk 0:03:03]}  Nc6 {[%clk 0:03:01]} 8. O-O {[%clk 0:03:04]}  Bd7 {[%clk 0:03:00]} 9. Nc3 {[%clk 0:03:02]}  d4 {[%clk 0:02:58]} 10. exd4 {[%clk 0:03:01]}  cxd4 {[%clk 0:02:58]} 11. Nb5 {[%clk 0:03:02]}  e5 {[%clk 0:02:56]} 12. Re1 {[%clk 0:03:02]}  Bg4 {[%clk 0:02:53]} 13. h3 {[%clk 0:02:59]}  Bxf3 {[%clk 0:02:53]} 14. Bxf3 {[%clk 0:02:59]}  a6 {[%clk 0:02:52]} 15. Na3 {[%clk 0:02:59]}  Qd7 {[%clk 0:02:49]} 16. Bg2 {[%clk 0:02:58]}  Rfe8 {[%clk 0:02:45]} 17. d3 {[%clk 0:02:58]}  Bb4 {[%clk 0:02:43]} 18. Re2 {[%clk 0:02:57]}  Rad8 {[%clk 0:02:38]} 19. Nc2 {[%clk 0:02:57]}  Bc3 {[%clk 0:02:36]} 20. Rb1 {[%clk 0:02:43]}  Bxb2 {[%clk 0:02:21]} 21. Rxb2 {[%clk 0:02:43]}  b5 {[%clk 0:02:22]} 22. Rb1 {[%clk 0:02:40]}  bxc4 {[%clk 0:02:10]} 23. bxc4 {[%clk 0:02:41]}  Rb8 {[%clk 0:02:10]} 24. Rxb8 {[%clk 0:02:35]}  Rxb8 {[%clk 0:02:06]} 25. Bxc6 {[%clk 0:02:29]}  Qxc6 {[%clk 0:02:06]} 26. Rxe5 {[%clk 0:02:30]}  Qd6 {[%clk 0:02:00]} 27. Re2 {[%clk 0:02:11]}  Rb2 {[%clk 0:01:56]} 28. Qa1 {[%clk 0:01:57]}  Qb6 {[%clk 0:01:50]} 29. Kh2 {[%clk 0:01:54]}  h6 {[%clk 0:01:37]} 30. c5 {[%clk 0:01:53]}  Qb7 {[%clk 0:01:26]} 31. c6 {[%clk 0:01:52]}  Qb6 {[%clk 0:00:37]} 32. c7 {[%clk 0:01:50]}  Rb1 {[%clk 0:00:27]} 33. c8=Q+ {[%clk 0:01:46]}  Kh7 {[%clk 0:00:19]} 34. Qxd4 {[%clk 0:01:42]} 1-0


[Site "https://www.chess.com"]

[Event "Titled Tuesday Blitz August 15 Early 2023"]
[White "AndresDelgado77"]
[Black "Baghdasaryan, Vahe"]
[BlackFideId "13303139"]
[WhiteElo "2259"]
[BlackElo "2451"]
[Result "1-0"]
[Round "3"]
[TimeControl "180+1"]
[Date "2023.08.15"]
[WhiteClock "0:00:06"]
[BlackClock "0:00:00"]
[Board "205"]

1. e4 {[%clk 0:02:49]}  e5 {[%clk 0:02:59]} 2. Nc3 {[%clk 0:02:48]}  Nf6 {[%clk 0:02:57]} 3. d4 {[%clk 0:02:47]}  exd4 {[%clk 0:02:52]} 4. Qxd4 {[%clk 0:02:46]}  Nc6 {[%clk 0:02:51]} 5. Qc4 {[%clk 0:02:42]}  d6 {[%clk 0:02:33]} 6. Bg5 {[%clk 0:02:38]}  Be6 {[%clk 0:02:33]} 7. Qb5 {[%clk 0:02:23]}  Rb8 {[%clk 0:02:03]} 8. O-O-O {[%clk 0:02:21]}  Be7 {[%clk 0:02:00]} 9. e5 {[%clk 0:02:13]}  Ng4 {[%clk 0:01:48]} 10. Bxe7 {[%clk 0:02:03]}  Qxe7 {[%clk 0:01:46]} 11. exd6 {[%clk 0:02:02]}  cxd6 {[%clk 0:01:45]} 12. Nh3 {[%clk 0:01:36]}  O-O {[%clk 0:01:41]} 13. Be2 {[%clk 0:01:35]}  Nge5 {[%clk 0:01:37]} 14. Nf4 {[%clk 0:01:21]}  a6 {[%clk 0:01:32]} 15. Qb6 {[%clk 0:01:14]}  Qg5 {[%clk 0:01:29]} 16. g3 {[%clk 0:01:09]}  Nc4 {[%clk 0:00:33]} 17. Bxc4 {[%clk 0:00:57]}  Bxc4 {[%clk 0:00:33]} 18. Rxd6 {[%clk 0:00:54]}  Qe5 {[%clk 0:00:29]} 19. Rhd1 {[%clk 0:00:49]}  Rfe8 {[%clk 0:00:20]} 20. h4 {[%clk 0:00:36]}  Ne7 {[%clk 0:00:20]} 21. Rd8 {[%clk 0:00:29]}  Nf5 {[%clk 0:00:11]} 22. Rxe8+ {[%clk 0:00:22]}  Rxe8 {[%clk 0:00:11]} 23. Kb1 {[%clk 0:00:19]}  Qe7 {[%clk 0:00:07]} 24. Ncd5 {[%clk 0:00:15]}  Bxd5 {[%clk 0:00:06]} 25. Nxd5 {[%clk 0:00:15]}  Qe5 {[%clk 0:00:06]} 26. Qxb7 {[%clk 0:00:12]}  Nd4 {[%clk 0:00:05]} 27. Ne3 {[%clk 0:00:08]}  Nb5 {[%clk 0:00:00]} 28. Qd5 {[%clk 0:00:06]} 1-0


[Site "https://www.chess.com"]

[Event "Titled Tuesday Blitz August 15 Early 2023"]
[White "Fajdetic, Hrvoje"]
[Black "Kielinkei"]
[WhiteFideId "14501945"]
[WhiteElo "2248"]
[BlackElo "2429"]
[Result "1-0"]
[Round "3"]
[TimeControl "180+1"]
[Date "2023.08.15"]
[WhiteClock "0:00:07"]
[BlackClock "0:00:04"]
[Board "207"]

1. f4 {[%clk 0:02:59]}  d5 {[%clk 0:02:58]} 2. b3 {[%clk 0:02:57]}  Nf6 {[%clk 0:02:55]} 3. Bb2 {[%clk 0:02:57]}  g6 {[%clk 0:02:55]} 4. Nf3 {[%clk 0:02:56]}  Bg7 {[%clk 0:02:56]} 5. e3 {[%clk 0:02:57]}  O-O {[%clk 0:02:56]} 6. Be2 {[%clk 0:02:55]}  c5 {[%clk 0:02:57]} 7. O-O {[%clk 0:02:55]}  Nc6 {[%clk 0:02:57]} 8. d3 {[%clk 0:02:52]}  c4 {[%clk 0:02:28]} 9. Bxf6 {[%clk 0:02:25]}  Bxf6 {[%clk 0:02:26]} 10. d4 {[%clk 0:02:25]}  cxb3 {[%clk 0:02:16]} 11. axb3 {[%clk 0:02:24]}  Bf5 {[%clk 0:02:03]} 12. c4 {[%clk 0:02:20]}  e6 {[%clk 0:01:50]} 13. Nc3 {[%clk 0:02:17]}  Qd7 {[%clk 0:01:36]} 14. Ne5 {[%clk 0:02:13]}  Nxe5 {[%clk 0:01:35]} 15. fxe5 {[%clk 0:02:14]}  Bg5 {[%clk 0:01:35]} 16. Qd2 {[%clk 0:02:09]}  h5 {[%clk 0:01:27]} 17. Nb5 {[%clk 0:01:34]}  f6 {[%clk 0:01:12]} 18. Nd6 {[%clk 0:01:23]}  fxe5 {[%clk 0:01:11]} 19. dxe5 {[%clk 0:01:10]}  Bh6 {[%clk 0:00:44]} 20. Nxf5 {[%clk 0:01:05]}  Rxf5 {[%clk 0:00:38]} 21. Rxf5 {[%clk 0:01:03]}  gxf5 {[%clk 0:00:37]} 22. Bxh5 {[%clk 0:00:59]}  d4 {[%clk 0:00:37]} 23. Qxd4 {[%clk 0:00:47]}  Qxd4 {[%clk 0:00:37]} 24. exd4 {[%clk 0:00:47]}  Be3+ {[%clk 0:00:38]} 25. Kf1 {[%clk 0:00:34]}  Bxd4 {[%clk 0:00:39]} 26. Rd1 {[%clk 0:00:29]}  Bxe5 {[%clk 0:00:35]} 27. Rd7 {[%clk 0:00:27]}  b6 {[%clk 0:00:35]} 28. Bf7+ {[%clk 0:00:26]}  Kf8 {[%clk 0:00:35]} 29. Bxe6 {[%clk 0:00:26]}  Bxh2 {[%clk 0:00:33]} 30. Bxf5 {[%clk 0:00:22]}  a5 {[%clk 0:00:30]} 31. g4 {[%clk 0:00:20]}  a4 {[%clk 0:00:28]} 32. bxa4 {[%clk 0:00:10]}  Rxa4 {[%clk 0:00:29]} 33. Be6 {[%clk 0:00:08]}  Be5 {[%clk 0:00:24]} 34. g5 {[%clk 0:00:08]}  Ra3 {[%clk 0:00:20]} 35. Rf7+ {[%clk 0:00:08]}  Ke8 {[%clk 0:00:19]} 36. g6 {[%clk 0:00:08]}  Rg3 {[%clk 0:00:19]} 37. Kf2 {[%clk 0:00:09]}  Rxg6 {[%clk 0:00:18]} 38. Bd5 {[%clk 0:00:09]}  Bd4+ {[%clk 0:00:16]} 39. Kf3 {[%clk 0:00:09]}  Kd8 {[%clk 0:00:14]} 40. Ke4 {[%clk 0:00:10]}  Bc5 {[%clk 0:00:14]} 41. Kf5 {[%clk 0:00:10]}  Rg1 {[%clk 0:00:14]} 42. Ke6 {[%clk 0:00:11]}  Re1+ {[%clk 0:00:13]} 43. Kf5 {[%clk 0:00:11]}  Rd1 {[%clk 0:00:12]} 44. Ke6 {[%clk 0:00:11]}  Re1+ {[%clk 0:00:11]} 45. Kf5 {[%clk 0:00:12]}  Bd6 {[%clk 0:00:11]} 46. Rb7 {[%clk 0:00:10]}  Bc7 {[%clk 0:00:11]} 47. Kf6 {[%clk 0:00:11]}  Rf1+ {[%clk 0:00:10]} 48. Ke6 {[%clk 0:00:10]}  Kc8 {[%clk 0:00:07]} 49. Ra7 {[%clk 0:00:09]}  Re1+ {[%clk 0:00:06]} 50. Kf7 {[%clk 0:00:09]}  Rd1 {[%clk 0:00:06]} 51. Bc6 {[%clk 0:00:08]}  Kb8 {[%clk 0:00:04]} 52. Ra8# {[%clk 0:00:07]} 1-0


[Site "https://www.chess.com"]

[Event "Titled Tuesday Blitz August 15 Early 2023"]
[White "agvania123"]
[Black "Buscar, Michael"]
[BlackFideId "2603616"]
[WhiteElo "2241"]
[BlackElo "2401"]
[Result "1/2-1/2"]
[Round "3"]
[TimeControl "180+1"]
[Date "2023.08.15"]
[WhiteClock "0:01:42"]
[BlackClock "0:01:19"]
[Board "209"]

1. c4 {[%clk 0:03:00]}  Nf6 {[%clk 0:02:59]} 2. Nc3 {[%clk 0:03:00]}  e6 {[%clk 0:02:59]} 3. Nf3 {[%clk 0:02:58]}  d5 {[%clk 0:02:58]} 4. cxd5 {[%clk 0:02:58]}  exd5 {[%clk 0:02:58]} 5. d4 {[%clk 0:02:59]}  c5 {[%clk 0:02:58]} 6. Bg5 {[%clk 0:02:59]}  Nc6 {[%clk 0:02:57]} 7. e3 {[%clk 0:02:59]}  Be7 {[%clk 0:02:55]} 8. Bb5 {[%clk 0:02:58]}  O-O {[%clk 0:02:55]} 9. O-O {[%clk 0:02:58]}  Bg4 {[%clk 0:02:54]} 10. dxc5 {[%clk 0:02:55]}  Bxc5 {[%clk 0:02:53]} 11. h3 {[%clk 0:02:55]}  Bh5 {[%clk 0:02:51]} 12. Be2 {[%clk 0:02:52]}  h6 {[%clk 0:02:09]} 13. Bxf6 {[%clk 0:02:42]}  Qxf6 {[%clk 0:02:09]} 14. Qxd5 {[%clk 0:02:42]}  Bxf3 {[%clk 0:02:09]} 15. Bxf3 {[%clk 0:02:40]}  Bb4 {[%clk 0:02:05]} 16. Qc4 {[%clk 0:02:19]}  Rac8 {[%clk 0:01:50]} 17. Bxc6 {[%clk 0:02:16]}  Bxc3 {[%clk 0:01:51]} 18. Qxc3 {[%clk 0:02:14]}  Qxc3 {[%clk 0:01:49]} 19. bxc3 {[%clk 0:02:14]}  Rxc6 {[%clk 0:01:50]} 20. Rab1 {[%clk 0:02:14]}  b6 {[%clk 0:01:49]} 21. Rb3 {[%clk 0:02:08]}  Rfc8 {[%clk 0:01:49]} 22. Rc1 {[%clk 0:01:57]}  Rc4 {[%clk 0:01:48]} 23. Kf1 {[%clk 0:01:56]}  R8c5 {[%clk 0:01:46]} 24. Ke2 {[%clk 0:01:55]}  h5 {[%clk 0:01:41]} 25. f3 {[%clk 0:01:54]}  h4 {[%clk 0:01:35]} 26. e4 {[%clk 0:01:52]}  Ra4 {[%clk 0:01:32]} 27. Rc2 {[%clk 0:01:52]}  Rca5 {[%clk 0:01:30]} 28. Rbb2 {[%clk 0:01:43]}  Rg5 {[%clk 0:01:19]} 29. Kf2 {[%clk 0:01:42]} 1/2-1/2


[Site "https://www.chess.com"]